Cogmind - Beta 11.1 @@@ ROGUE MODE // 2022.11.07 @ 19:27:09 Player: BRiNK Result: Self-destructed Performance ------------- Evolutions (2) 1000 Regions Visited (3) 600 Robots Destroyed (45) 225 Value Destroyed (1132) 1132 Prototype IDs (1) 20 Alien Tech Used (0) 0 Bonus (0) 0 TOTAL SCORE: 2977 Bonus ------- None Cogmind --------- Core Integrity 15/550 Matter 300/300 Energy 100/100 System Corruption 0% Temperature Cool (0) Movement Rolling (105) Ox1 Location -8/Materials Parts ------- > --- POWER (2) -------- (None) > --- PROPULSION (2) --- Wheel Compact Wheel > --- UTILITY (4) ------ High-capacity Storage Unit Improved Signal Interpreter Hacking Suite System Shield > --- WEAPON (3) ------- Mace > --- INVENTORY (20) --- Small Storage Unit Peak State ------------ > --- POWER ------------ Light Deuterium Engine Light Deuterium Engine > --- PROPULSION ------- Light Treads Advanced Treads > --- UTILITY ---------- High-capacity Storage Unit Signal Interpreter Transport Network Coupler Improved Targeting Computer > --- WEAPON ----------- Beam Rifle Particle Gun Light Assault Rifle > --- INVENTORY -------- Light Ion Engine Light Nuclear Core Aluminum Leg Aluminum Leg Small Storage Unit Hacking Suite System Shield Improved EM Shotgun Heavy Assault Rifle Autogun Mace [Rating: 22] Favorites ----------- Power Light Ion Engine Engine Light Ion Engine Power Core Light Nuclear Core Propulsion Light Treads Treads Light Treads Leg Aluminum Leg Wheel Compact Wheel Utility Signal Interpreter Storage Small Storage Unit Processor Signal Interpreter Hackware Hacking Suite Weapon Assault Rifle Energy Gun Beam Rifle Ballistic Gun Assault Rifle Launcher Grenade Launcher Impact Weapon Mace Build | -11 -10 -9 -8 ------- Run | Scr Mat Mat Mat Slots Evolved 4 | . . 2 2 Power 1 | . . . 1 Propulsion . | . . . . Utility 2 | . . 1 1 Weapon 1 | . . 1 . Parts Attached 47 | 6 5 11 25 Power 11 | 1 2 2 6 Engine 8 | 1 1 2 4 Core 3 | . 1 . 2 Reactor . | . . . . Propulsion 11 | 2 . 2 7 Treads 5 | 2 . 2 1 Leg 4 | . . . 4 Wheel 2 | . . . 2 Hover . | . . . . Flight . | . . . . Utility 9 | 1 1 3 4 Device . | . . . . Storage 2 | 1 . 1 . Processor 5 | . 1 2 2 Hackware 2 | . . . 2 Protection . | . . . . Artifact . | . . . . Weapon 16 | 2 2 4 8 Energy Gun 5 | . . 2 3 Energy Cannon . | . . . . Ballistic Gun 8 | 2 1 2 3 Ballistic Cannon . | . . . . Launcher 1 | . 1 . . Special Weapon . | . . . . Impact Weapon 2 | . . . 2 Slashing Weapon . | . . . . Piercing Weapon . | . . . . Special Melee Weapon . | . . . . Unidentified Prototypes 1 | . . . 1 Parts Lost 31 | . 4 6 21 Power 9 | . 1 2 6 Propulsion 9 | . 1 2 6 Utility 1 | . . . 1 Weapon 12 | . 2 2 8 Highest Loss Streak 10 | . 3 3 10 To Critical Strikes 1 | . 1 . . Average Slot Usage (%) 83 | . 92 85 75 Engine 9 | . 12 10 6 Core 1 | . 1 . 2 Treads 11 | . 23 10 3 Leg 2 | . . . 7 Storage 11 | . 14 11 9 Processor 18 | . 12 22 19 Hackware 2 | . . . 6 Energy Gun 7 | . . 10 8 Ballistic Gun 14 | . 23 18 3 Launcher 1 | . 4 1 . Impact Weapon 2 | . . . 6 Naked Turns . | . . . . Heaviest Build 57 | 12 14 50 57 Greatest Support 42 | 40 40 40 42 Greatest Overweight (x) 14 | . . 2 14 Average Overweight (x) . | . . . 2 Largest Inventory Capacity 20 | 8 8 20 20 Average Capacity 13 | 7 8 11 20 Most Carried 11 | 5 3 8 11 Average Carried 3 | 1 1 3 5 Final Capacity 20 | 8 8 20 20 Final Carried 8 | 1 1 8 1 Class Distribution -------------------- 39% | Scavenger-Gunner 38% | Mutant 15% | Scavenger-Mutant 7% | Hacker-Mutant Dominant Class ---------------- Mutant | -10/Materials Scavenger-Gunner | -9/Materials Scavenger-Mutant | -8/Materials Resources | -11 -10 -9 -8 ----------- Run | Scr Mat Mat Mat Matter Collected 1256 | 211 289 259 497 Remotely . | . . . . Salvage Created 1423 | . 424 418 581 Parts 94 | . 29 36 29 Haulers Intercepted 1 | . . 1 . Recyclers Shooed . | . . . . Parts Field Recycled . | . . . . Retrieved Matter . | . . . . Parts Self-Destructed . | . . . . Prevented . | . . . . Kills | -11 -10 -9 -8 ------- Run | Scr Mat Mat Mat Combat Hostiles Destroyed 36 | . 10 13 13 Melee 3 | . . . 3 Guns 29 | . 8 12 9 AOE 3 | . 2 1 . Classes Destroyed 10 | . 4 2 4 Worker 2 | . . . 2 Hauler 1 | . . 1 . Recycler 2 | . 1 1 . Operator 1 | . . . 1 Watcher 3 | . 3 . . Swarmer 15 | . 3 9 3 Grunt 15 | . 7 2 6 Brawler 1 | . . . 1 Duelist 1 | . . . 1 Sentry 4 | . . 2 2 Best Kill Streak 4 | . 4 3 4 Combat Bots Only 4 | . 3 3 4 Max Kills in Single Turn 3 | . 3 1 1 Gunslinging 1 | . 1 . . Exploded 2 | . 2 1 . Melee 1 | . . . 1 Uniques/NPCs Destroyed . | . . . . Combat | -11 -10 -9 -8 -------- Run | Scr Mat Mat Mat Damage Taken 3669 | . 773 589 2307 Core 734 | . 135 64 535 Absorbed by Shields . | . . . . Core Remaining (%) 76 | 100 46 84 . Volleys Fired 140 | . 43 33 64 Largest 3 | . 2 3 3 Hottest 141 | . 50 141 141 Shots Fired 282 | . 80 92 110 Gun 277 | . 76 91 110 Cannon . | . . . . Launcher 5 | . 4 1 . Special . | . . . . Kinetic 168 | . 76 58 34 Thermal 106 | . . 33 73 Explosive 5 | . 4 1 . Electromagnetic 3 | . . . 3 Robot Hit Streak 27 | . 9 12 27 Robot Miss Streak 8 | . 3 4 8 Penetration Max . | . . . . Secondary Targets 7 | . 2 2 3 Max Gunslinging Chain 1 | . 1 1 1 Shots Hit Robots 194 | . 53 51 90 Core Hits 74 | . 24 21 29 Critical Kills . | . . . . Critical Parts Destroyed . | . . . . Critical Strikes 5 | . . . 5 Burn 4 | . . . 4 Smash 1 | . . . 1 Melee Attacks 18 | . . . 18 Impact 18 | . . . 18 Slashing . | . . . . Piercing . | . . . . Sneak Attacks 3 | . . . 3 Combat Hostiles . | . . . . Follow-up Attacks . | . . . . Damage Inflicted 3030 | . 762 616 1652 Guns 2223 | . 596 568 1059 Cannons . | . . . . Explosions 210 | . 162 48 . Melee 593 | . . . 593 Ramming 4 | . 4 . . Kinetic 1273 | . 596 319 358 Thermal 903 | . . 249 654 Explosive 210 | . 162 48 . Electromagnetic 47 | . . . 47 Impact 593 | . . . 593 Slashing . | . . . . Piercing . | . . . . Highest Corruption . | . . . . Average Corruption . | . . . . Corruption Purged . | . . . . Corruption Blocked . | . . . . Overload Shots . | . . . . Overflow Damage 141 | . 4 66 71 Projectiles . | . . . . Explosions 70 | . 4 66 . Melee 71 | . . . 71 Knockbacks 4 | . . . 4 Impact 4 | . . . 4 Kinetic . | . . . . Secondary . | . . . . Self-Inflicted Damage 180 | . 72 108 . Shots 5 | . 3 2 . Rammed 1 | . 1 . . Targets Rammed 1 | . 1 . . Kicked . | . . . . Crushed . | . . . . Highest Temperature 763 | . 11 324 763 Average Temperature 185 | . 3 81 250 Received Heat Transfer 1431 | . 300 105 1026 Effects 33 | . . . 33 Shutdowns 4 | . . . 4 Energy Bleed 7 | . . . 7 Interference 6 | . . . 6 Matter Decay 5 | . . . 5 Short Circuit 4 | . . . 4 Damage (minor) 2 | . . . 2 Damage (major) 4 | . . . 4 Damage (core) 1 | . . . 1 Siege Activations . | . . . . Robots Corrupted . | . . . . Combat Hostiles . | . . . . Parts Fried 1 | . . . 1 Impact Corruptions 4 | . . . 4 Robots Melted 1 | . . . 1 Combat Hostiles 1 | . . . 1 Parts Melted 7 | . . 2 5 Heat Transferred 2516 | . . 629 1887 Parts Sabotaged . | . . . . Parts Stolen . | . . . . Parts Stripped . | . . . . Power Chain Reactions . | . . . . Missiles Intercepted . | . . . . Alert | -11 -10 -9 -8 ------- Run | Scr Mat Mat Mat Peak Influence 384 | . 339 384 336 Initial 161 | . . 87 161 Average 198 | . 177 223 202 Maximum Alert Level 1 | . 1 1 1 Low Security (%) 44 | 100 53 30 50 Level 1 55 | . 46 69 49 Level 2 . | . . . . Level 3 . | . . . . Level 4 . | . . . . Level 5 . | . . . . High Security . | . . . . Max Security . | . . . . Squads Dispatched 12 | . 3 3 6 Investigation 3 | . 2 . 1 Extermination . | . . . . Reinforcement 6 | . 1 3 2 Assault . | . . . . Garrison 3 | . . . 3 Intercept . | . . . . Searches Triggered . | . . . . Construction Impeded . | . . . . Haulers Reinforced . | . . . . Active Scanning Responses . | . . . . Cargo Convoy Interrupts . | . . . . Stealth | -11 -10 -9 -8 --------- Run | Scr Mat Mat Mat Distress Signals 6 | . 2 1 3 Communications Jammed . | . . . . Distress Signals . | . . . . Times Spotted 56 | . 17 15 24 Peak Tracking Total 10 | . 7 3 10 Tactical Retreats 7 | . 2 2 3 Traps | -11 -10 -9 -8 ------- Run | Scr Mat Mat Mat Traps Triggered . | . . . . Indirectly . | . . . . Trap Hack Attempts . | . . . . Triggered . | . . . . Disarmed . | . . . . Reprogrammed . | . . . . Reused . | . . . . Traps Extracted . | . . . . Installed . | . . . . Triggered 1 | . . . 1 Machines | -11 -10 -9 -8 ---------- Run | Scr Mat Mat Mat Machines Disabled 3 | . . 3 . Max in Single Turn 1 | . . 1 . Machines Sabotaged . | . . . . Garrisons Compromised . | . . . . Overloaded Fab Kills . | . . . . Hacking | -11 -10 -9 -8 --------- Run | Scr Mat Mat Mat Machines Accessed 5 | . 4 . 1 Terminals 4 | . 4 . . Fabricators . | . . . . Repair Stations . | . . . . Recycling Units 1 | . . . 1 Scanalyzers . | . . . . Garrison Access . | . . . . Total Hacks 10 | . 8 . 2 Successful . | . . . . Failed 10 | . 8 . 2 Catastrophic 4 | . 4 . . Database Lockouts . | . . . . Manual 10 | . 8 . 2 Terminals 8 | . 8 . . Fabricators . | . . . . Repair Stations . | . . . . Recycling Units 2 | . . . 2 Scanalyzers . | . . . . Garrison Access . | . . . . Terminal Hacks . | . . . . Fabricator Hacks . | . . . . Repair Station Hacks . | . . . . Recycling Unit Hacks . | . . . . Scanalyzer . | . . . . Garrison Access Hacks . | . . . . Unauthorized Hacks . | . . . . Terminals . | . . . . Fabricators . | . . . . Repair Stations . | . . . . Recycling Units . | . . . . Scanalyzers . | . . . . Garrison Access . | . . . . Data Cores Recovered . | . . . . Used . | . . . . Hacking Detections 5 | . 4 . 1 Full Trace Events 2 | . 2 . . Feedback Events . | . . . . Feedback Blocked . | . . . . Robot Schematics Acquired . | . . . . Robots Built . | . . . . Authchips . | . . . . Time . | . . . . Total Robot Build Rating . | . . . . Part Schematics Acquired . | . . . . Parts Built . | . . . . Authchips . | . . . . Time . | . . . . Total Part Build Rating . | . . . . Parts Repaired . | . . . . Time . | . . . . Parts Recycled . | . . . . Recycled Matter . | . . . . Retrieved Matter . | . . . . Retrieved Components . | . . . . Parts Scanalyzed . | . . . . Part Schematics Acquired . | . . . . Parts Damaged . | . . . . Bothacking | -11 -10 -9 -8 ------------ Run | Scr Mat Mat Mat Used RIF Installer . | . . . . Robots Hacked . | . . . . Non-combat . | . . . . Combat . | . . . . Robot Hacks Applied . | . . . . Relay Couplers Released . | . . . . Fabnet Peak Effective % . | . . . . Robots Rewired . | . . . . Allies Hacked . | . . . . Hacks Repelled . | . . . . Allies | -11 -10 -9 -8 -------- Run | Scr Mat Mat Mat Total Allies . | . . . . Largest Group . | . . . . Highest-Rated Group . | . . . . Highest-Rated Ally . | . . . . Total Orders . | . . . . Ally Attacks . | . . . . Total Damage . | . . . . Kills . | . . . . Allies Corrupted . | . . . . Allies Melted . | . . . . Intel | -11 -10 -9 -8 ------- Run | Scr Mat Mat Mat Robot Analysis Total . | . . . . Derelict Logs Recovered . | . . . . Drone Launches . | . . . . Drone Recoveries . | . . . . Exploration | -11 -10 -9 -8 ------------- Run | Scr Mat Mat Mat Turns Passed 1957 | 64 490 783 620 Spaces Moved 759 | 48 223 349 139 Core 35 | 22 . 3 10 Treads 632 | 26 223 346 37 Legs 56 | . . . 56 Wheels 36 | . . . 36 Hover . | . . . . Flight . | . . . . Fastest Speed 50 | 50 160 150 105 Average Speed 187 | 109 160 188 257 Slowest Speed 750 | 160 160 320 750 Overloaded Moves . | . . . . Propulsion Burnouts . | . . . . Robots Hopped . | . . . . Cave-ins Triggered . | . . . . Exploration Rate (%) 23 | 4 44 33 12 Regions Visited 3 Branch Regions . Pre-discovered Areas . | . . . . Known Exits Taken 1 | . . 1 . Unknown Exits Taken 2 | 1 1 . . Scrap Searched . | . . . . Spaces Dug . | . . . . Terrain Destroyed 42 | . 25 17 . Melee . | . . . . Projectile . | . . . . AOE 42 | . 25 17 . Terrain Rammed . | . . . . Walls Destroyed . | . . . . Machines Disabled . | . . . . Actions | -11 -10 -9 -8 --------- Run | Scr Mat Mat Mat Total 1011 | 59 275 408 269 Wait 6 | . . . 6 Move 756 | 47 222 348 139 Hop . | . . . . Pick Up 42 | 6 4 16 16 Fast Attach 1 | 1 . . . Attach 39 | 5 4 8 22 Detach . | . . . . Swap 7 | . 1 3 3 Drop 1 | . . . 1 Fire 140 | . 43 33 64 Melee 18 | . . . 18 Ram . | . . . . Kick . | . . . . Crush 1 | . 1 . . Escape Stasis . | . . . . Rewire . | . . . . Trap . | . . . . Miscellaneous . | . . . . Route ------- -11/Scrapyard -10/Materials -9/Materials -8/Materials History --------- Turn | Location | Event 7 | -11/Scrapyard | Discovered new exit (range 15) 65 | -11/Scrapyard | Entered Materials 304 | -10/Materials | Build established: Mutant 399 | -10/Materials | Core integrity fell below 50% 435 | -10/Materials | Lost 3 parts (1n2w) 508 | -10/Materials | Discovered new exit (range 5) 555 | -10/Materials | Entered another Materials area 555 | -9/Materials | Evolved 2 slots: Utility x1, Weapon x1 718 | -9/Materials | Lost 3 parts (1p1n1w) 1004 | -9/Materials | Build established: Scavenger-Gunner 1296 | -9/Materials | Discovered new exit (range 10) 1322 | -9/Materials | Identified exit to Materials 1338 | -9/Materials | Entered another Materials area 1338 | -8/Materials | Evolved 2 slots: Power x1, Utility x1 1470 | -8/Materials | Garrison activated, responded to threat 1544 | -8/Materials | Core integrity fell below 50% 1582 | -8/Materials | Lost 10 parts (3p2n5w) 1710 | -8/Materials | Lost 5 parts (1p2n1u1w) 1851 | -8/Materials | Core integrity fell below 20% 1899 | -8/Materials | Lost 6 parts (2p2n2w) 1958 | -8/Materials | Self-destructed Last Messages --------------- 01878_ Destroyed Particle Gun. 01878_ G-47 Trooper system corrupted by crushing effect. 01880_ K-01 Serf collects debris. 01885_ K-01 Serf cleans the Electrolysis Chamber. 01901_ Sneak attack on K-01 Serf. 01901_ K-01 Serf destroyed. 01903_ K-01 Serf collects debris. 01908_ K-01 Serf cleans the Electrolysis Chamber. 01911_ Sneak attack on K-01 Serf. 01911_ Destroyed Lgt. Ion Engine. 01911_ K-01 Serf system corrupted by crushing effect. 01911_ Wheel fried. 01911_ K-01 Serf destroyed. 01914_ K-01 Serf cleans the Electrolysis Chamber. 01916_ Acquired Wheel. 01917_ Acquired 10 matter. 01922_ K-01 Serf collects debris. 01939_ Sneak attack on A-02 Transporter. 01941_ K-01 Serf collects debris. 01955_ Electrolysis Chamber disabled. Map ----- +----------------------------------------------------+ | ?????????????????????????????????????????????????? | | ?????????????????????????????????????????????????? | | ?????????????????????????????????????????????????? | | ?????????????????????????????????????????????????? | | ?????????????????????????????????????????????????? | | ?????????????????????????????????????????????????? | | ????????????????? ???????????????????????????????? | | ???????????????# ??????????????????????????????? | | ???????????????# ???????????????????? ????????? | | ????????????????# ?????????????????? #????????? | | ????????????????# ???????????????? #????????? | | ????????????????# ?????????????? #????????? | | ????????????????# ############# #????????? | | ????????????????# #????????? | | ????????????????# #????????? | | ????????????????+ #????????? | | ????????????????# % #????????? | | ????????????????# = %! #????????? | | ???????????????????#######+#+########????????????? | | ?????????????????????# % #????????????? | | ????????????????#????# gg +????????????? | | ??????########### ???# """g""" """ #????????????? | | ??? #### """ """ "" #????????????? | | ??? / "" """ """ #????????????? | | ???] ]! #### gs #????????????? | | ??? ]= ???####@###########????????????? | | ???? != ???????# #??????????????????????? | | ???? ?????### ###???????#########????? | | ????? ##### #???????# #????? | | ????? ^^ ######### #????? | | ????? ^ % #????? | | ?????? ^^ ##########+######????? | | ??????###/#####+####### % #????# #?????? | | ???????? ?????????????###+####???#"" #?????? | | ??????? ??????????????# % #???#"" #?????? | | ??????????????????????# #???#"T """ #?????? | | ??????????????????????# "%" #???#"" """ #?????? | | ??????????????????????# "Y" #???#"" """ #?????? | | ??????????????????????# """ #???# #?????? | | ??????????????????????# #???# #?????? | | ??????????????????????########???###########?????? | | ?????????????????????????????????????????????????? | | ?????????????????????????????????????????????????? | | ?????????????????????????????????????????????????? | | ?????????????????????????????????????????????????? | | | | | | | | | | | +----------------------------------------------------+ Best States ------------- Heat Dissipation 31 Energy Generation 23 Energy Capacity 200 Matter Stores 300 Matter Capacity 300 Sight Range 16 Terrain Scan Density 10 Evasion (%) 50 Targeting Accuracy 6 Recoil Reduction 2 Offensive Hacking 10 Defensive Hacking 10 Item Schematics ----------------- None Robot Schematics ------------------ None Fabricated ------------ Nothing Alien Tech Used ----------------- None Achievements -------------- None Challenges ------------ None Game ------ Seed SiegeDirtyGun Manual? 0 Play Time 00:22:36 Cumulative 15.6 hours Start 2022.11.07 @ 19:05:31 End 2022.11.07 @ 19:27:09 Sessions 1 Manual Loads 0 Difficulty Rogue Special Mode None Game No. 22 Rogue 22 Adventurer 0 Explorer 0 Win Type - Total 0 Types 0/0/0/0/0/0/0/0/0 Lore% 19 Gallery% 17 Achievement% 14 Wizard Run 0 Options --------- ASCII 0 Keyboard 0 Movement Mouse Keybinds 0 Fullscreen 1 Font 24/Crisp Map View 76x50 Tactical HUD 1 Map Filters NONE Filters NONE Steam 1 RUN: 5e16ea13-d22d-4d0b-b645-65e17ed7c478